Cogmind - Beta 13 @@@ ROGUE MODE // 2024.07.29 @ 16:51:17 Player: dwarfinator Result: Destroyed by HJ-21F(R) with Subdweller Shrapnel Launcher Performance ------------- Evolutions (0) 0 Regions Visited (2) 400 Robots Destroyed (40) 200 Value Destroyed (1153) 1153 Prototype IDs (2) 40 Alien Tech Used (0) 0 Bonus (0) 0 TOTAL SCORE: 1793 Bonus ------- None Cogmind --------- Core Integrity 0/250 Matter 16/300 Energy 249/250 System Corruption 2% Temperature Cool (0) Movement Treading (160) Location -10/Subcaves Parts ------- > --- POWER (1) -------- Ion Engine > --- PROPULSION (2) --- Light Treads Spiked Treads > --- UTILITY (2) ------ Scrap Shield > --- WEAPON (2) ------- Subdweller Laser (fused) Battle Cannon > --- INVENTORY (5) ---- Light Treads Improved Terrain Scanner Makeshift Light Armor Plating Subdweller Laser Battle Cannon Peak State ------------ > --- POWER ------------ Subdweller Power Source > --- PROPULSION ------- Light Treads Spiked Treads > --- UTILITY ---------- Scrap Shield > --- WEAPON ----------- Subdweller Laser Subdweller Laser > --- INVENTORY -------- Light Treads Improved Terrain Scanner Battle Cannon Battle Cannon Scrap Shield Fragment [Rating: 14] Favorites ----------- Power Ion Engine Engine Ion Engine Propulsion Light Treads Treads Light Treads Leg Aluminum Leg Utility Large Storage Unit Device Seismic Detector Storage Large Storage Unit Processor Targeting Computer Hackware Hacking Suite Protection Scrap Shield Weapon Subdweller Laser Energy Gun Subdweller Laser Energy Cannon Beam Cannon Ballistic Gun Assault Rifle Ballistic Cannon Battle Cannon Launcher Subdweller Shrapnel Launcher Special Weapon Mining Laser Build | -11 -10 -10 ------- Run | Yrd Mat Sub Slots Evolved . | . . . Power . | . . . Propulsion . | . . . Utility . | . . . Weapon . | . . . Parts Attached 59 | 6 20 33 Power 15 | 1 5 9 Engine 15 | 1 5 9 Core . | . . . Reactor . | . . . Propulsion 11 | 2 6 3 Treads 8 | 2 3 3 Leg 3 | . 3 . Wheel . | . . . Hover . | . . . Flight . | . . . Utility 10 | 2 4 4 Device 3 | 1 1 1 Storage 3 | 1 2 . Processor 1 | . . 1 Hackware 1 | . 1 . Protection 2 | . . 2 Artifact . | . . . Weapon 23 | 1 5 17 Energy Gun 7 | . 1 6 Energy Cannon 2 | . 2 . Ballistic Gun 5 | 1 2 2 Ballistic Cannon 4 | . . 4 Launcher 3 | . . 3 Special Weapon 2 | . . 2 Impact Weapon . | . . . Slashing Weapon . | . . . Piercing Weapon . | . . . Special Melee Weapon . | . . . Unidentified Prototypes . | . . . Corrupted Parts 1 | . 1 . System Corruption 2 | . 2 . Parts Lost 11 | . 6 5 Power 5 | . 3 2 Propulsion 3 | . 1 2 Utility . | . . . Weapon 3 | . 2 1 Highest Loss Streak 2 | . 2 2 To Critical Strikes . | . . . Average Slot Usage (%) 93 | . 94 92 Engine 13 | . 13 14 Treads 25 | . 22 27 Leg 2 | . 4 . Device 2 | . 4 1 Storage 10 | . 14 6 Processor 2 | . . 5 Hackware 4 | . 9 . Protection 3 | . . 7 Energy Gun 9 | . 4 14 Energy Cannon 7 | . 13 2 Ballistic Gun 5 | . 5 5 Ballistic Cannon 1 | . . 2 Launcher 1 | . . 3 Naked Turns . | . . . Heaviest Build 35 | 10 31 35 Greatest Support 40 | 40 40 40 Greatest Overweight (x) 4 | . 4 1 Average Overweight (x) . | . . . Largest Inventory Capacity 15 | 8 15 15 Average Capacity 10 | 7 11 9 Most Carried 15 | 4 15 15 Average Carried 9 | 1 10 9 Final Capacity 15 | 8 15 5 Final Carried 14 | 4 14 5 Class Distribution -------------------- 57% | Mutant 22% | Subdweller-Mutant 19% | Scavenger-Mutant Dominant Class ---------------- Mutant | -10/Materials Subdweller-Mutant | -10/Subcaves Resources | -11 -10 -10 ----------- Run | Yrd Mat Sub Matter Collected 1038 | 267 363 408 Remotely . | . . . Salvage Created 1346 | 66 891 389 Parts 83 | 5 50 28 Haulers Intercepted 2 | . 2 . Recyclers Shooed . | . . . Parts Field Recycled . | . . . Retrieved Matter . | . . . Parts Self-Destructed 13 | . . 13 Prevented . | . . . Kills | -11 -10 -10 ------- Run | Yrd Mat Sub Combat Hostiles Destroyed 32 | . 17 15 Melee 1 | . 1 . Guns 10 | . 3 7 Cannons 16 | . 13 3 AOE 5 | . . 5 Classes Destroyed 10 | 2 5 3 Worker 1 | . 1 . Tunneler 1 | 1 . . Hauler 2 | . 2 . Recycler 1 | 1 . . Operator 1 | . 1 . Watcher 2 | . 2 . Swarmer 5 | . . 5 Grunt 17 | . 17 . Cobbler 1 | . . 1 Subdweller 10 | . . 10 Best Kill Streak 3 | 2 3 3 Combat Bots Only 3 | . 3 3 Max Kills in Single Turn 2 | 1 1 2 Gunslinging . | . . . Exploded 2 | . . 2 Melee 1 | . 1 . Uniques/NPCs Destroyed . | . . . Combat | -11 -10 -10 -------- Run | Yrd Mat Sub Hostile Shots Fired 204 | . 105 99 Missed 65 | . 26 39 Damage Taken 2226 | . 997 1229 Core 253 | . 105 148 Absorbed by Shields . | . . . Regen/Repaired (Parts) 205 | . 205 . Core Remaining (%) 100 | 100 . . Volleys Fired 182 | 7 93 82 Largest 2 | 1 2 2 Hottest 160 | 20 100 160 Shots Fired 284 | 7 145 132 Gun 163 | 7 74 82 Cannon 114 | . 71 43 Launcher 6 | . . 6 Special 1 | . . 1 Kinetic 111 | 7 53 51 Thermal 152 | . 71 81 Explosive . | . . . Electromagnetic 21 | . 21 . Robot Hit Streak 21 | 7 14 21 Robot Miss Streak 3 | . 3 1 Penetration Max . | . . . Secondary Targets . | . . . Shots Hit Robots 191 | 7 96 88 Core Hits 68 | 4 37 27 Critical Kills . | . . . Critical Parts Destroyed 1 | . 1 . Critical Strikes 2 | . 1 1 Destroy 1 | . 1 . Blast 1 | . . 1 Melee Attacks . | . . . Impact . | . . . Slashing . | . . . Piercing . | . . . Sneak Attacks . | . . . Combat Hostiles . | . . . Follow-up Attacks . | . . . Damage Inflicted 3287 | 58 1239 1990 Guns 1549 | 53 520 976 Cannons 1429 | . 695 734 Explosions 280 | . . 280 Melee . | . . . Ramming 29 | 5 24 . Kinetic 1487 | 53 371 1063 Thermal 1622 | . 695 927 Explosive . | . . . Electromagnetic 149 | . 149 . Impact . | . . . Slashing . | . . . Piercing . | . . . Highest Corruption 2 | . 2 2 Average Corruption 2 | . 2 2 Corruption Purged . | . . . Corruption Blocked . | . . . Effects 50 | . 10 40 Message Errors 11 | . 2 9 Matter Fused 16 | . 6 10 Heat Flow Errors 7 | . . 7 Energy Discharges 2 | . 1 1 Parts Fused 2 | . . 2 Data Loss (minor) 5 | . . 5 Data Loss (major) 4 | . 1 3 Misfires 1 | . . 1 Alerts 2 | . . 2 Overload Shots . | . . . Overflow Damage . | . . . Projectiles . | . . . Explosions . | . . . Melee . | . . . Knockbacks 5 | . . 5 Impact . | . . . Kinetic 5 | . . 5 Secondary . | . . . Self-Inflicted Damage 31 | . . 31 Shots 2 | . . 2 Rammed 8 | 2 6 . Targets Rammed 10 | 2 8 . Kicked . | . . . Crushed 2 | . 2 . Highest Temperature 378 | . 378 220 Average Temperature 95 | . 97 84 Received Heat Transfer 795 | . 615 180 Effects 1 | . 1 . Energy Bleed 1 | . 1 . Siege Activations . | . . . Robots Corrupted . | . . . Combat Hostiles . | . . . Parts Fried . | . . . Impact Corruptions . | . . . Robots Melted . | . . . Combat Hostiles . | . . . Parts Melted 3 | . 2 1 Heat Transferred 2799 | . 1480 1319 Parts Sabotaged . | . . . Parts Stolen . | . . . Parts Stripped . | . . . Power Chain Reactions . | . . . Alert | -11 -10 -10 ------- Run | Yrd Mat Sub Peak Influence 255 | 10 255 . Initial 6 | . 6 . Average 119 | 5 123 . Maximum Alert Level 1 | . 1 . Low Security (%) 76 | 100 76 . Level 1 23 | . 23 . Level 2 . | . . . Level 3 . | . . . Level 4 . | . . . Level 5 . | . . . High Security . | . . . Max Security . | . . . Squads Dispatched 6 | . 6 . Investigation 5 | . 5 . Extermination . | . . . Reinforcement 1 | . 1 . Assault . | . . . Garrison . | . . . Intercept . | . . . Searches Triggered . | . . . Construction Impeded . | . . . Haulers Reinforced . | . . . Active Scanning Responses . | . . . Cargo Convoy Interrupts . | . . . Stealth | -11 -10 -10 --------- Run | Yrd Mat Sub Distress Signals . | . . . Communications Jammed . | . . . Distress Signals . | . . . Times Spotted 44 | . 27 17 Peak Tracking Total 4 | . 3 4 Tactical Retreats 3 | . 2 1 Traps | -11 -10 -10 ------- Run | Yrd Mat Sub Traps Triggered 7 | . 4 3 Indirectly . | . . . Trap Hack Attempts . | . . . Triggered . | . . . Disarmed . | . . . Reprogrammed . | . . . Reused . | . . . Traps Extracted . | . . . Installed . | . . . Triggered . | . . . Machines | -11 -10 -10 ---------- Run | Yrd Mat Sub Machines Disabled 2 | . 2 . Max in Single Turn 1 | . 1 . Machines Repaired . | . . . Machines Dismantled . | . . . Machines Sabotaged . | . . . Overloaded Fab Kills . | . . . Hacking | -11 -10 -10 --------- Run | Yrd Mat Sub Machines Accessed 11 | . 10 1 Terminals 7 | . 7 . Fabricators . | . . . Repair Stations 1 | . 1 . Recycling Units 2 | . 2 . Scanalyzers . | . . . Garrison Access . | . . . Total Hacks 34 | . 31 3 Successful 22 | . 19 3 Failed 12 | . 12 . Catastrophic 2 | . 2 . Database Lockouts . | . . . Manual 19 | . 19 . Terminals 23 | . 23 . Fabricators . | . . . Repair Stations 4 | . 4 . Recycling Units 4 | . 4 . Scanalyzers . | . . . Garrison Access . | . . . Terminal Hacks 11 | . 8 3 Record 3 | . . 3 Part Schematic 1 | . 1 . Prototype ID Bank 1 | . 1 . Locate Traps 1 | . 1 . Recall Investigation 3 | . 3 . Hauler Manifests 1 | . 1 . Registered Components 1 | . 1 . Fabricator Hacks . | . . . Repair Station Hacks 4 | . 4 . Scan Component 2 | . 2 . Repair 2 | . 2 . Recycling Unit Hacks 2 | . 2 . Report Inventory 2 | . 2 . Scanalyzer . | . . . Garrison Access Hacks . | . . . Unauthorized Hacks 5 | . 5 . Terminals 3 | . 3 . Botnet 2 | . 2 . Operators 1 | . 1 . Fabricators . | . . . Repair Stations . | . . . Recycling Units 2 | . 2 . Tunnel 2 | . 2 . Scanalyzers . | . . . Garrison Access . | . . . Data Cores Recovered . | . . . Used . | . . . Hacking Detections 8 | . 8 . Full Trace Events 4 | . 4 . Feedback Events . | . . . Feedback Blocked . | . . . Robot Schematics Acquired . | . . . Robots Built . | . . . Authchips . | . . . Time . | . . . Total Robot Build Rating . | . . . Part Schematics Acquired 1 | . 1 . Parts Built . | . . . Authchips . | . . . Time . | . . . Total Part Build Rating . | . . . Parts Repaired 2 | . 2 . Time 52 | . 52 . Parts Recycled . | . . . Recycled Matter . | . . . Retrieved Matter . | . . . Retrieved Components . | . . . Parts Scanalyzed . | . . . Part Schematics Acquired . | . . . Parts Damaged . | . . . Bothacking | -11 -10 -10 ------------ Run | Yrd Mat Sub Used RIF Installer . | . . . Robots Hacked . | . . . Non-combat . | . . . Combat . | . . . Robot Hacks Applied . | . . . Relay Couplers Released . | . . . Fabnet Peak Effective % . | . . . Robots Rewired . | . . . Allies Hacked . | . . . Hacks Repelled . | . . . Allies | -11 -10 -10 -------- Run | Yrd Mat Sub Total Allies . | . . . Largest Group . | . . . Highest-Rated Group . | . . . Highest-Rated Ally . | . . . Total Orders . | . . . Ally Attacks . | . . . Total Damage . | . . . Kills . | . . . Allies Corrupted . | . . . Allies Melted . | . . . Intel | -11 -10 -10 ------- Run | Yrd Mat Sub Robot Analysis Total . | . . . Derelict Logs Recovered 1 | . . 1 Drone Launches . | . . . Drone Recoveries . | . . . Exploration | -11 -10 -10 ------------- Run | Yrd Mat Sub Turns Passed 5658 | 105 2600 2953 Spaces Moved 2834 | 52 1224 1558 Core 9 | 5 4 . Treads 2803 | 47 1198 1558 Legs 22 | . 22 . Wheels . | . . . Hover . | . . . Flight . | . . . Fastest Speed 50 | 50 160 160 Average Speed 160 | 149 161 160 Slowest Speed 250 | 160 250 240 Overloaded Moves . | . . . Propulsion Burnouts . | . . . Robots Hopped . | . . . Cave-ins Triggered . | . . . Exploration Rate (%) 60 | 4 98 80 Regions Visited 2 Branch Regions 1 Pre-discovered Areas 4 | . 2 2 Known Exits Taken . | . . . Unknown Exits Taken 2 | 1 1 . Scrap Searched 3 | . . 3 Spaces Dug 22 | . . 22 Terrain Destroyed 81 | . . 81 Melee . | . . . Projectile 1 | . . 1 AOE 80 | . . 80 Terrain Rammed . | . . . Walls Destroyed . | . . . Machines Disabled . | . . . Actions | -11 -10 -10 --------- Run | Yrd Mat Sub Total 3661 | 70 1710 1881 Wait 500 | . 334 166 Move 2833 | 52 1223 1558 Hop . | . . . Pick Up 35 | 4 19 12 Fast Attach 25 | 6 9 10 Attach 12 | . 4 8 Detach 6 | . 1 5 Swap 22 | . 7 15 Drop 30 | . 12 18 Fire 182 | 7 93 82 Melee . | . . . Ram . | . . . Kick . | . . . Crush 9 | 1 8 . Escape Stasis . | . . . Rewire . | . . . Trap . | . . . Miscellaneous 7 | . . 7 Route ------- -11/Scrapyard -10/Materials (discovered 5 exits: [*Mat x3] / [*Min] / *Sub) -10/Subcaves (discovered 1 exit: [*Mat]) History --------- Turn | Location | Event 5 | -11/Scrapyard | Discovered new exit (range 15) 106 | -11/Scrapyard | Entered Materials 336 | -10/Materials | Build established: Mutant 608 | -10/Materials | Discovered new exit (range 12) 810 | -10/Materials | Discovered new exit (range 5) 1104 | -10/Materials | Repaired Lgt. Treads 1141 | -10/Materials | Discovered new exit (range 15) 1862 | -10/Materials | Repaired Lgt. Treads 1953 | -10/Materials | Discovered new exit (range 11) 2678 | -10/Materials | Discovered new exit (range 8) 2706 | -10/Materials | Entered Subcaves 2856 | -10/Subcaves | Visited Clippyterm 2860 | -10/Subcaves | Learned Factory stockpile data 2978 | -10/Subcaves | Core integrity fell below 50% 3074 | -10/Subcaves | Discovered new exit (range 6) 3527 | -10/Subcaves | Build established: Scavenger-Mutant 3551 | -10/Subcaves | Learned location of Zion (-7) 3681 | -10/Subcaves | Met a Zionite searching for "candidates" 3863 | -10/Subcaves | A swath of the cavern ceiling suddenly collapsed 4092 | -10/Subcaves | Core integrity fell below 20% 4289 | -10/Subcaves | Shifting Twisted Machinery released Spk. Treads 4442 | -10/Subcaves | Disturbed a concealed Subdweller 4532 | -10/Subcaves | A swath of the cavern ceiling suddenly collapsed 4795 | -10/Subcaves | Build established: Subdweller-Mutant 5071 | -10/Subcaves | Shifting Twisted Machinery released Battle Cannon 5132 | -10/Subcaves | Shifting Twisted Machinery released Battle Rifle 5659 | -10/Subcaves | Destroyed by HJ-21F(R) with Subdweller Shrapnel Launcher Last Messages --------------- 05543_ Acquired 33 matter. 05546_ Dropped Broken Sub. Power Source. 05546_ Acquired Ion Engine. 05548_ Dropped Scrap Shield. 05550_ Acquired Cobbler Unit. 05551_ Dropped Cobbler Unit. 05553_ Subatomizers dissect the Sub. Optics. 05553_ Acquired Scrap Shield. 05555_ Dropped Scrap Shield Fragment. 05556_ Scrap Shield Fragment affixed to Scrap Shield (+46). 05560_ Acquired Mak. Light Armor Plating. 05572_ Acquired 7 matter. 05573_ Acquired 5 matter. 05630_ System corrupted: Component data lost. 05639_ HX-UGD(R) destroyed. 05642_ A0-842(R) knocked back. 05646_ System corrupted: Matter fused (-6). 05648_ A0-842(R) destroyed. 05657_ HJ-21F(R) knocked back. 05658_ HJ-21F(R) affixes Scrap Shield Fragment to Scrap Shield. Map ----- +----------------------------------------------------+ | ?????????????????????????????????????????????????? | | ?????????????????????????????????????????????????? | | ?????????????????????????????????????????????????? | | ?????????????????????????????????????????????????? | | ?????????????????????????????????????????????????? | | ?????????????????????????????????????????????????? | | ?????????????????????????????????????????????????? | | ?????????????????????????????????????????????????? | | ?????????????????????????????????????????????????? | | ????????????????????????# ???????????????????????? | | ????????????????????????# ???????????????????????? | | ???????????????????????? ???????????????????????? | | ????????????????????? ??# ???????????????????????? | | ????????????????????? ??# ???????????????????????? | | ??????????????? ?????? ? ???????????????????????? | | ???????????????? ????? ## ##?????????????????????? | | ????????????????# ????? ##????????????????????? | | ????????????????# ? ??? % ##??????##??" ???????? | | ???????????????## ??? ####### ## "????????? | | ???????????????# ???? ##"" " ??????????? | | ????????????????? ???# % "" " #???????????? | | ??????????????????# #### R ##" " #???????????? | | ???????????????????# ; ; ;## #??????????????? | | ???????????????????# ; # ##??????????????? | | ???????????????????# #; # R #???????????????? | | ??????????????????## ; @ = ###???????????????? | | ??????????????????# "; & #????????????????? | | ??????????????????##""; &! #????????????????? | | ??????????????????# " ; ;; ; #????????????????? | | ??????????????????##" # ##????????????????? | | ???????????????????# ##???????????????? | | ???????????????????## #???????????????? | | ????????????????????### ## """" #???????????????? | | ?????????????????????# ##" ####???????????????? | | ?????????????????????## ####""#?????????????????? | | ?????????????????#####= #??# ##?????????????????? | | ?????????????????# ##?# ??????????????????? | | ?????????????????## !=# # #?# #?????????????????? | | ?????????????????# ######? #?????????????????? | | ????????????????### ##?????# # ?????????????????? | | ????????????????#" #??????"""""?????????????????? | | ????????????????## ##????## ?????????????????? | | ?????????????????## #????# #?????????????????? | | ?????????????????# * #????# #?????????????????? | | ????????????????## ###??? ?????????????????? | | ????????????????# = ! #??? #?????????????????? | | ????????????????# #??## #?????????????????? | | ????????????????# ##?? ##?????????????? ?? | | ????????????????## ##?? #???????????? | | ?????????????????## ##?# #???????????? | +----------------------------------------------------+ Best States ------------- Heat Dissipation 25 Energy Generation 15 Energy Capacity 250 Matter Stores 300 Matter Capacity 300 Sight Range 16 Terrain Scan Range 16 Terrain Scan Density 10 Armor Coverage 800 Evasion (%) 40 Targeting Accuracy 5 Recoil Reduction 2 Offensive Hacking 10 Item Schematics ----------------- Huge Storage Unit | -10/Materials | Hacked Robot Schematics ------------------ None Fabricated ------------ Nothing Alien Tech Used ----------------- None Achievements -------------- None Challenges ------------ None Game ------ Seed InertialRefineryInterrupter Manual? 0 Play Time 01:17:03 Cumulative 123.4 hours Start 2024.07.29 @ 15:29:43 End 2024.07.29 @ 16:51:17 Sessions 1 Manual Loads 0 Difficulty Rogue Special Mode None Game No. 25 Rogue 22 Adventurer 3 Explorer 0 Win Type - Total 7 Types 7/0/0/0/0/0/0/0/0 Lore% 54 Gallery% 71 Achievement% 61 Wizard Run 0 Options --------- Layout 0 ASCII 0 Keyboard 0 Movement Numpad Keybinds 0 Fullscreen 1 Font 18/SmallcapsGlow Map View 76x50 Zoom Use 0% Tactical HUD 1 Map Filters NONE Filters NONE Steam 1 RUN: 7135a979-fbf8-4c62-9468-9ca33477a5c6